bitfinex/quotes_BTCUSD_20250412
["timestamp","ask_amount","ask_price","bid_price","bid_amount"]
[1744476732461,0.236482,84573.0,84572.0,0.00617349]
[1744476732886,0.256482,84573.0,84572.0,0.00617349]
[1744476733093,0.236487,84571.0,84570.0,0.09764513]
[1744476733323,0.246487,84571.0,84570.0,0.09764513]
[1744476734193,0.236487,84571.0,84570.0,0.09764513]
[1744476736888,0.236487,84571.0,84570.0,0.09864513]
[1744476737766,0.256487,84571.0,84570.0,0.09864513]
[1744476737987,0.236487,84571.0,84570.0,0.09864513]
[1744476738678,0.256487,84571.0,84570.0,0.09864513]
[1744476739835,0.26748102,84571.0,84570.0,0.09864513]
[1744476740534,0.28946808,84571.0,84570.0,0.09864513]
[1744476743575,0.24748102,84571.0,84570.0,0.09864513]
[1744476743800,0.24748102,84571.0,84570.0,0.14824513]
[1744476744044,0.236487,84572.0,84570.0,0.14824513]
[1744476744279,0.236487,84572.0,84570.0,0.1544301]
[1744476745253,0.236487,84572.0,84570.0,0.1534301]
[1744476745473,0.236487,84572.0,84570.0,0.1544301]
[1744476745696,0.248306,84573.0,84570.0,0.1544301]
[1744476745909,0.011824,84573.0,84570.0,0.1544301]
[1744476746544,0.248308,84573.0,84570.0,0.1544301]
[1744476748130,0.236486,84572.0,84570.0,0.1544301]
[1744476748647,0.236486,84572.0,84570.0,0.1534301]
[1744476748862,0.236486,84572.0,84570.0,0.1544301]
[1744476749655,0.236486,84572.0,84570.0,0.1534301]
[1744476750732,0.236486,84572.0,84570.0,0.1544301]
[1744476753618,0.248308,84573.0,84570.0,0.1544301]
[1744476756007,0.011823,84574.0,84570.0,0.3909181]
[1744476756198,0.011823,84574.0,84570.0,0.1534301]
[1744476756343,0.011823,84574.0,84570.0,0.3899181]
[1744476756764,0.248298,84576.0,84571.0,0.236485]
[1744476756964,0.011823,84574.0,84571.0,0.236485]
[1744476757332,0.011823,84575.0,84572.0,0.00576396]
[1744476757591,0.011823,84578.0,84573.0,0.236482]
[1744476757805,0.011822,84588.0,84577.0,0.23647]
[1744476758024,0.24851102,84595.0,84587.0,0.236442]
[1744476758256,0.011821,84592.0,84587.0,0.236442]
[1744476758483,0.0126668,84594.0,84590.0,0.236432]
[1744476758690,0.0008458,84594.0,84593.0,0.236426]
[1744476758847,0.0008458,84594.0,84593.0,0.00572632]
[1744476759056,0.0008458,84594.0,84592.0,0.236426]
[1744476759260,0.0008458,84594.0,84593.0,0.00572632]
[1744476759704,0.0008458,84594.0,84593.0,0.12656786]
[1744476759859,0.0008458,84594.0,84593.0,0.17186786]
[1744476760071,0.0058458,84594.0,84593.0,0.17186786]
[1744476760732,0.0078458,84594.0,84593.0,0.17286786]
[1744476761165,0.0078458,84594.0,84593.0,0.1752318]
[1744476761808,0.0088458,84594.0,84593.0,0.1752318]
[1744476762469,0.0088458,84594.0,84593.0,0.5152318]
[1744476762686,0.0008458,84596.0,84593.0,0.55866786]
[1744476762899,0.0008458,84596.0,84595.0,0.50614154]
[1744476763111,0.0008458,84596.0,84595.0,0.51123135]
[1744476765315,0.0008458,84596.0,84595.0,0.51423135]
[1744476767705,0.0008458,84596.0,84595.0,0.92343135]
[1744476768839,0.0008458,84596.0,84595.0,0.58343135]
[1744476769067,0.0008458,84596.0,84595.0,0.53813135]
[1744476769987,0.0008458,84596.0,84595.0,0.58363135]
[1744476770424,0.0008458,84596.0,84595.0,0.58263135]
[1744476770630,0.0008458,84596.0,84595.0,0.58063135]
[1744476771070,0.0008458,84596.0,84595.0,0.74183135]
[1744476772622,0.0008458,84596.0,84595.0,0.58263135]
[1744476772846,0.0008458,84596.0,84595.0,0.74183135]
[1744476773085,0.0008458,84596.0,84595.0,0.74283135]
[1744476773600,0.0008458,84596.0,84595.0,0.33263135]
[1744476773845,0.0008458,84596.0,84595.0,0.33063135]
[1744476774044,0.0008458,84596.0,84595.0,0.17243135]
[1744476774303,0.0008458,84596.0,84595.0,0.33399504]
[1744476774532,0.0008458,84596.0,84595.0,0.33163135]
[1744476775905,7.48e-05,84606.0,84604.0,0.236395]
[1744476776137,7.48e-05,84606.0,84605.0,0.12084154]
[1744476776327,7.48e-05,84606.0,84605.0,0.12559093]
[1744476777179,0.00012138,84606.0,84605.0,0.12559093]
[1744476780136,0.00012138,84606.0,84605.0,0.00474939]
[1744476780601,0.04752138,84606.0,84605.0,0.00574939]
[1744476781084,0.05752138,84606.0,84605.0,0.001]
[1744476781620,0.05752138,84606.0,84589.0,1.228461]
[1744476781621,0.011821,84594.0,84591.0,0.236431]
[1744476781847,0.010821,84594.0,84592.0,0.12084154]
[1744476782068,0.010821,84594.0,84592.0,0.1256005]
[1744476782294,0.011821,84595.0,84592.0,0.1256005]
[1744476783309,0.236423,84594.0,84592.0,0.1256005]
[1744476784781,0.236423,84594.0,84592.0,0.1266005]
[1744476785504,0.236423,84594.0,84592.0,0.00575896]
[1744476785991,0.236423,84594.0,84592.0,0.001]
[1744476786451,0.236423,84594.0,84593.0,0.0048212]
[1744476787132,0.011821,84595.0,84593.0,0.0048212]
[1744476787812,0.24824,84596.0,84593.0,0.0058212]
[1744476788040,0.011821,84595.0,84591.0,0.236431]
[1744476788265,0.011821,84595.0,84590.0,0.011821]
[1744476788266,0.01182,84597.0,84594.0,0.0048212]
[1744476788497,0.01182,84596.0,84593.0,0.001]
[1744476788726,0.01182,84597.0,84593.0,0.237424]
[1744476788994,0.01182,84596.0,84594.0,0.0048212]
[1744476789209,0.01182,84598.0,84594.0,0.0048212]
[1744476789653,0.00012138,84606.0,84603.0,0.236398]
[1744476789856,0.01194038,84606.0,84603.0,0.236398]
[1744476790064,0.011819,84604.0,84599.0,0.236409]
[1744476790484,0.011819,84603.0,84599.0,0.236409]
[1744476790695,0.01194038,84606.0,84603.0,0.236398]
[1744476790904,0.01194038,84606.0,84602.0,0.236398]
[1744476791123,0.00012138,84606.0,84602.0,0.236398]
[1744476791383,0.011819,84605.0,84602.0,0.236398]
[1744476792888,0.011819,84605.0,84603.0,0.00485949]
[1744476793092,0.011819,84605.0,84602.0,0.236398]
[1744476793297,0.011819,84605.0,84604.0,0.00485949]
[1744476793530,0.011819,84605.0,84602.0,0.236398]
[1744476793734,0.011819,84603.0,84600.0,0.12084154]
[1744476793988,0.011819,84603.0,84600.0,0.35724754]
[1744476794220,0.011819,84603.0,84600.0,0.12084154]
[1744476794221,0.236401,84602.0,84600.0,0.12084154]
[1744476794438,0.01182,84601.0,84595.0,0.236417]
[1744476794660,0.011819,84603.0,84596.0,0.12084154]
[1744476794878,0.00012138,84606.0,84605.0,0.236392]
[1744476795090,0.00012138,84606.0,84604.0,0.236392]
[1744476795552,0.00012138,84606.0,84603.0,0.236395]
[1744476796898,0.01194038,84606.0,84603.0,0.236395]
[1744476797116,0.00012138,84606.0,84604.0,0.236393]
[1744476798054,0.00012138,84606.0,84605.0,0.12084154]
[1744476799111,0.00012138,84606.0,84598.0,0.236409]
[1744476799315,0.00012138,84606.0,84601.0,0.236401]
[1744476799534,0.00012138,84606.0,84603.0,0.236397]
[1744476800370,0.00012138,84606.0,84604.0,0.237392]
[1744476801521,0.00012138,84606.0,84604.0,0.236392]
[1744476802930,0.00012138,84606.0,84604.0,0.237392]
[1744476807745,0.00012138,84606.0,84605.0,0.00475966]
[1744476808992,0.00012138,84606.0,84605.0,0.00575966]
[1744476809438,0.00012138,84606.0,84605.0,0.1266012]
[1744476814205,0.00012138,84606.0,84605.0,0.1727012]
[1744476815379,0.00012138,84606.0,84605.0,0.17506477]
[1744476816686,0.00012138,84606.0,84605.0,0.1727012]
[1744476817373,0.00012138,84606.0,84605.0,0.17506463]
[1744476817581,0.00012138,84606.0,84605.0,0.17506456]
[1744476817792,0.00012138,84606.0,84605.0,0.1727012]
[1744476818226,0.00012138,84606.0,84605.0,0.1527012]
[1744476820421,0.00012138,84606.0,84605.0,0.15506457]
[1744476822388,0.00012138,84606.0,84605.0,0.18820456]
[1744476822617,0.00012138,84606.0,84605.0,0.52820456]
[1744476822843,3.8e-07,84606.0,84605.0,0.5258413]
[1744476825518,3.8e-07,84606.0,84605.0,0.6790413]
[1744476826188,3.8e-07,84606.0,84605.0,1.0882413]
[1744476843161,3.8e-07,84606.0,84605.0,1.0882013]
[1744476844222,0.00067006,84609.0,84606.0,0.588208]
[1744476844445,0.00067006,84609.0,84608.0,0.576384]
[1744476844665,0.00067006,84609.0,84608.0,0.73036564]
[1744476844909,0.00067006,84609.0,84608.0,0.69722554]
[1744476845568,0.00067006,84609.0,84608.0,0.73034773]
[1744476850979,0.00067006,84609.0,84608.0,0.88162773]
[1744476856708,0.00067006,84609.0,84608.0,0.92802773]
[1744476857131,6e-08,84609.0,84608.0,0.92802773]
[1744476858042,6e-08,84609.0,84608.0,0.77674773]
[1744476858255,6e-08,84609.0,84608.0,0.92802773]
[1744476861436,6e-08,84609.0,84608.0,1.33722773]
[1744476862633,6e-08,84609.0,84608.0,1.35276858]
[1744476863324,6e-08,84609.0,84608.0,1.33722773]
[1744476863781,6e-08,84609.0,84608.0,1.29082773]
[1744476878273,6e-08,84609.0,84608.0,0.88162773]
[1744476878490,6e-08,84609.0,84608.0,0.54162773]
[1744476880383,6e-08,84609.0,84608.0,0.54158773]
[1744476882026,6e-08,84609.0,84608.0,0.61407149]
[1744476887037,6e-08,84609.0,84608.0,0.15124]
[1744476891201,6e-08,84609.0,84607.0,0.236384]
[1744476892718,6e-08,84609.0,84607.0,0.236385]
[1744476893434,6e-08,84609.0,84606.0,0.236388]
[1744476893608,6e-08,84609.0,84607.0,0.236385]
[1744476894417,6e-08,84609.0,84606.0,0.12084154]
[1744476894619,0.24820206,84609.0,84606.0,0.12084154]
[1744476894827,0.01181906,84609.0,84606.0,0.12084154]
[1744476895055,6e-08,84609.0,84606.0,0.12084154]
[1744476895286,0.01181906,84609.0,84606.0,0.12084154]
[1744476895489,6e-08,84609.0,84606.0,0.35722854]
[1744476895755,6e-08,84609.0,84607.0,0.236384]
[1744476897679,6e-08,84609.0,84608.0,0.12084154]
[1744476897910,6e-08,84609.0,84608.0,0.12320514]
[1744476898348,6e-08,84609.0,84608.0,0.12084154]
[1744476901595,6e-08,84609.0,84608.0,0.12320515]
[1744476902267,6e-08,84609.0,84608.0,0.15635746]
[1744476902939,6e-08,84609.0,84608.0,0.15635727]
[1744476903247,6e-08,84609.0,84608.0,0.15635726]
[1744476903343,6e-08,84609.0,84608.0,0.15399385]
[1744476903559,6e-08,84609.0,84608.0,0.12084154]
[1744476906416,6e-08,84609.0,84608.0,0.15400073]
[1744476906621,6e-08,84609.0,84608.0,0.12084154]
[1744476909690,6e-08,84609.0,84608.0,0.15400826]
[1744476909915,6e-08,84609.0,84608.0,0.12084154]
[1744476910135,6e-08,84609.0,84608.0,0.15400826]
[1744476911153,6e-08,84609.0,84608.0,0.12084154]
[1744476911567,6e-08,84609.0,84608.0,0.15401529]
[1744476911800,6e-08,84609.0,84608.0,0.12084154]
[1744476911912,6e-08,84609.0,84608.0,0.15401494]
[1744476912137,6e-08,84609.0,84608.0,0.12084154]
[1744476912587,6e-08,84609.0,84608.0,0.15401899]
[1744476913012,6e-08,84609.0,84608.0,0.12320515]
[1744476913421,6e-08,84609.0,84608.0,0.15638226]
[1744476915393,6e-08,84609.0,84608.0,0.12320515]
[1744476915606,6e-08,84609.0,84608.0,0.15638626]
[1744476916027,6e-08,84609.0,84608.0,0.12320515]
[1744476916271,6e-08,84609.0,84608.0,0.15638627]
[1744476916679,6e-08,84609.0,84608.0,0.12320515]
[1744476916904,6e-08,84609.0,84608.0,0.12084154]
[1744476917313,6e-08,84609.0,84608.0,0.12320511]
[1744476919298,6e-08,84609.0,84608.0,0.15638779]
[1744476922559,6e-08,84609.0,84608.0,0.12320511]
[1744476925202,6e-08,84609.0,84608.0,0.15639043]
[1744476947261,6e-08,84609.0,84608.0,0.22887419]
[1744476949907,6e-08,84609.0,84608.0,0.15639043]
[1744476953904,6e-08,84609.0,84608.0,0.20519043]
[1744476954127,6.6e-07,84619.0,84618.0,0.64069685]
[1744476954348,6.6e-07,84619.0,84618.0,1.35496371]
[1744476955633,6e-08,84625.0,84624.0,0.576339]
[1744476955846,8.279e-05,84625.0,84624.0,0.78016586]
[1744476958167,8.279e-05,84625.0,84624.0,1.18936586]
[1744476958376,8.279e-05,84625.0,84624.0,1.25340671]
[1744476958377,7.9e-07,84625.0,84624.0,1.25340671]
[1744476959953,7.9e-07,84625.0,84624.0,1.26524823]
[1744476961917,9.9e-07,84630.0,84629.0,0.63596585]
[1744476962109,9.9e-07,84630.0,84629.0,0.78999271]
[1744476962769,9.9e-07,84630.0,84629.0,0.79099271]
[1744476964048,9.9e-07,84630.0,84629.0,1.20019271]
[1744476965704,9.9e-07,84630.0,84629.0,1.19919271]
[1744476965919,9.9e-07,84630.0,84629.0,1.18465186]
[1744476967068,9.9e-07,84630.0,84629.0,1.19919271]
[1744476967490,9.9e-07,84630.0,84629.0,1.27127609]
[1744476968771,9.9e-07,84630.0,84629.0,1.27227609]
[1744476971739,9.9e-07,84645.0,84642.0,0.011814]
[1744476972001,0.00010575,84645.0,84644.0,0.69712454]
[1744476977970,0.00010575,84645.0,84644.0,1.10632454]
[1744476982827,0.00010575,84645.0,84644.0,1.25712454]
[1744476985616,0.04570575,84645.0,84644.0,1.25712454]
[1744476986753,0.04570575,84645.0,84644.0,1.29019523]
[1744476986989,0.04570575,84645.0,84644.0,1.25712454]
[1744476987458,0.04570575,84645.0,84644.0,1.29022084]
[1744476987698,0.04570575,84645.0,84644.0,0.88102084]
[1744476988603,0.00010575,84645.0,84644.0,0.88102084]
[1744476992484,0.00010575,84645.0,84644.0,0.95172084]
[1744477004914,0.00010575,84645.0,84644.0,0.95156084]
[1744477006145,0.35454085,84690.0,84660.0,0.00101773]
[1744477006582,0.42660465,84670.0,84660.0,0.00101773]
[1744477007036,0.248043,84663.0,84660.0,0.00101773]
[1744477007257,0.236235,84662.0,84660.0,0.00101773]
[1744477007460,0.25827166,84662.0,84660.0,0.00101773]
[1744477007922,0.02203666,84661.0,84660.0,0.00101773]
[1744477009197,0.11783666,84661.0,84660.0,0.00101773]
[1744477009855,0.14783666,84661.0,84660.0,0.00101773]
[1744477011497,0.30088,84645.0,84644.0,0.0707]
[1744477012430,0.32291666,84645.0,84644.0,0.0707]
[1744477013094,0.30088,84645.0,84644.0,0.0707]
[1744477013327,0.28408,84645.0,84644.0,0.0707]
[1744477014058,0.29408,84645.0,84644.0,0.0707]
[1744477014301,0.36319258,84645.0,84644.0,0.0707]
[1744477017702,0.37519286,84645.0,84644.0,0.0707]
[1744477018917,0.35318028,84645.0,84644.0,0.0707]
[1744477019038,0.37515816,84645.0,84644.0,0.0707]
[1744477019893,0.36315788,84645.0,84644.0,0.0707]
[1744477020890,0.36415788,84645.0,84644.0,0.0707]
[1744477021355,0.37607272,84645.0,84644.0,0.0707]
[1744477022424,0.35409484,84645.0,84644.0,0.0707]
[1744477023347,0.37605093,84645.0,84644.0,0.0707]
[1744477024004,0.32895093,84645.0,84644.0,0.0707]
[1744477024445,0.31703609,84645.0,84644.0,0.0707]
[1744477024890,0.29508,84645.0,84644.0,0.0707]
[1744477025801,0.81666239,84645.0,84644.0,0.0707]
[1744477026044,0.8386099,84645.0,84644.0,0.0707]
[1744477027934,0.8386099,84645.0,84612.0,0.329071]
[1744477027935,0.236333,84626.0,84612.0,0.0461]
[1744477028161,0.406333,84626.0,84625.0,0.00052726]
[1744477028637,0.236333,84626.0,84625.0,0.00052726]
[1744477029090,0.246333,84626.0,84625.0,0.00052726]
[1744477029441,0.246333,84626.0,84625.0,0.00152726]
[1744477031519,0.246333,84626.0,84625.0,0.00052726]
[1744477039790,0.26829715,84626.0,84625.0,0.00052726]
[1744477040377,0.25829715,84626.0,84625.0,0.00052726]
[1744477041260,0.236333,84626.0,84625.0,0.00052726]
[1744477042926,0.33410364,84626.0,84625.0,0.00052726]
[1744477043148,0.49410364,84626.0,84625.0,0.00052726]
[1744477043378,0.59080364,84626.0,84625.0,0.00052726]
[1744477043832,0.493033,84626.0,84625.0,0.00052726]
[1744477044052,0.50402442,84626.0,84625.0,0.00052726]
[1744477044286,0.52600872,84626.0,84625.0,0.00052726]
[1744477044539,0.47700872,84626.0,84625.0,0.00052726]
[1744477045523,0.95239111,84626.0,84625.0,0.00052726]
[1744477046615,1.06312817,84626.0,84625.0,0.00052726]
[1744477047273,0.94139969,84626.0,84625.0,0.00052726]
[1744477047473,0.98749969,84626.0,84625.0,0.00052726]
[1744477047696,0.98849969,84626.0,84625.0,0.00052726]
[1744477048351,0.98749969,84626.0,84625.0,0.00052726]
[1744477049059,0.98949969,84626.0,84625.0,0.00052726]
[1744477050646,0.99349969,84626.0,84625.0,0.00052726]
[1744477051239,0.99149969,84626.0,84625.0,0.00052726]
[1744477051688,0.99849969,84626.0,84625.0,0.00152726]
[1744477053785,1.11922817,84626.0,84625.0,2.6e-07]
[1744477054454,0.99849969,84626.0,84625.0,2.6e-07]
[1744477055129,1.41190572,84626.0,84625.0,2.6e-07]
[1744477058402,1.39736487,84626.0,84625.0,2.6e-07]
[1744477058609,1.35126487,84626.0,84625.0,2.6e-07]
[1744477058825,1.36580572,84626.0,84625.0,2.6e-07]
[1744477059051,1.31810572,84626.0,84625.0,2.6e-07]
[1744477059710,1.35195479,84626.0,84625.0,2.6e-07]
[1744477062209,1.39905479,84626.0,84625.0,2.6e-07]
[1744477062417,1.35195479,84626.0,84625.0,2.6e-07]
[1744477065115,1.31810572,84626.0,84625.0,2.6e-07]
[1744477067058,1.36660572,84626.0,84625.0,2.6e-07]
[1744477074491,1.31810572,84626.0,84625.0,2.6e-07]
[1744477074703,1.46862572,84626.0,84625.0,2.6e-07]
[1744477083595,1.45408487,84626.0,84625.0,2.6e-07]
[1744477084267,0.9198373,84626.0,84625.0,2.6e-07]
[1744477084487,0.9198373,84626.0,84625.0,0.04810026]
[1744477084948,0.7598373,84626.0,84625.0,0.09370026]
[1744477085166,0.6093173,84626.0,84625.0,0.09370026]
[1744477085869,0.587333,84626.0,84625.0,0.09370026]
[1744477086111,0.580333,84626.0,84625.0,0.0937]
[1744477086547,0.582333,84626.0,84625.0,0.0937]
[1744477087082,0.578333,84626.0,84625.0,0.0937]
[1744477088016,0.579333,84626.0,84625.0,0.0937]
[1744477088498,0.578333,84626.0,84625.0,0.0937]
[1744477089187,0.728333,84626.0,84625.0,0.0937]
[1744477089423,0.002,84626.0,84625.0,0.0937]
[1744477091233,0.003,84626.0,84625.0,0.0937]
[1744477093373,0.011816,84628.0,84625.0,0.0456]
[1744477093595,0.011816,84628.0,84626.0,0.0481]
[1744477093785,0.248146,84628.0,84626.0,0.0481]
[1744477097538,0.011816,84628.0,84626.0,0.0481]
[1744477101460,0.191816,84628.0,84626.0,0.0481]
[1744477101823,0.011816,84628.0,84626.0,0.0481]
[1744477102287,0.248141,84629.0,84626.0,0.0481]
[1744477102516,0.428141,84629.0,84626.0,0.0481]
[1744477107148,0.18,84629.0,84626.0,0.284431]
[1744477107392,0.011816,84630.0,84626.0,0.284431]
[1744477107633,0.011816,84629.0,84626.0,0.284431]
[1744477108998,0.236314,84633.0,84625.0,0.0456]
[1744477108999,0.236303,84637.0,84629.0,0.236325]
[1744477109222,0.236303,84637.0,84628.0,0.0484]
[1744477109223,0.011815,84637.0,84631.0,0.23632]
[1744477109428,0.248112,84639.0,84632.0,0.0494]
[1744477110314,0.011815,84637.0,84633.0,0.236312]
[1744477111373,0.011815,84637.0,84632.0,0.0494]
[1744477111374,0.011815,84635.0,84632.0,0.0494]
[1744477115287,0.011815,84635.0,84632.0,0.285715]
[1744477116101,0.011815,84636.0,84632.0,0.285715]
[1744477116560,0.236302,84638.0,84635.0,0.236306]
[1744477116561,0.011815,84638.0,84635.0,0.236306]
[1744477116767,0.011815,84637.0,84633.0,0.236312]
[1744477117723,0.001,84635.0,84633.0,0.236312]
[1744477118632,0.011815,84636.0,84633.0,0.236312]
[1744477119031,0.011815,84637.0,84636.0,0.236304]
[1744477119032,0.001,84637.0,84636.0,0.236304]
[1744477119339,0.001,84637.0,84635.0,0.236308]
[1744477121075,0.002,84637.0,84635.0,0.236308]
[1744477121298,0.011815,84632.0,84627.0,0.236329]
[1744477121510,0.011815,84632.0,84628.0,0.236326]
[1744477121730,0.011816,84631.0,84627.0,0.236329]
[1744477121900,0.011815,84632.0,84627.0,0.236329]
[1744477122114,0.011815,84632.0,84628.0,0.236326]
[1744477122336,0.011815,84632.0,84627.0,0.236329]
[1744477122524,0.011816,84631.0,84627.0,0.236329]
[1744477122728,0.011815,84632.0,84628.0,0.236326]
[1744477125144,0.011816,84631.0,84628.0,0.236326]
[1744477126665,0.011816,84631.0,84625.0,0.282836]
[1744477126666,0.011816,84628.0,84625.0,0.282836]
[1744477126891,0.011816,84628.0,84619.0,0.0485]
[1744477126892,0.248167,84620.0,84619.0,0.0485]
[1744477127113,0.248167,84620.0,84611.0,0.0485]
[1744477127114,0.011818,84615.0,84611.0,0.0485]
[1744477127332,0.011818,84615.0,84612.0,8.273e-05]
[1744477127562,0.236367,84614.0,84612.0,8.273e-05]
[1744477127800,0.246367,84614.0,84612.0,8.273e-05]
[1744477128721,0.248185,84614.0,84611.0,0.04542363]
[1744477129423,0.011816,84624.0,84619.0,0.236352]
[1744477129666,0.011817,84621.0,84617.0,0.236356]
[1744477130162,0.011817,84620.0,84616.0,0.236359]
[1744477131639,0.011817,84621.0,84616.0,0.236359]
[1744477131910,0.011817,84620.0,84617.0,0.045]
[1744477132160,0.00010467,84624.0,84622.0,0.236343]
[1744477132423,0.00010467,84624.0,84623.0,0.045]
[1744477140146,0.248159,84623.0,84618.0,0.0481]
[1744477140382,0.011817,84621.0,84618.0,0.0481]
[1744477140590,0.248164,84622.0,84618.0,0.0481]
[1744477140770,0.011817,84621.0,84618.0,0.0481]
[1744477141006,0.248159,84623.0,84612.0,0.36903254]
[1744477141007,0.248183,84615.0,84612.0,0.0481]
[1744477141213,0.248177,84617.0,84612.0,0.28447]
[1744477141632,0.011818,84616.0,84612.0,0.28447]
[1744477142694,0.23637,84613.0,84612.0,0.0481]
[1744477142881,0.011818,84613.0,84610.0,0.0004225]
[1744477143341,0.011818,84614.0,84610.0,0.0004225]
[1744477143776,0.011818,84613.0,84610.0,0.0004225]
[1744477147358,0.24819,84613.0,84610.0,0.0004225]
[1744477147714,0.011818,84615.0,84610.0,0.0004225]
[1744477147916,0.011818,84613.0,84610.0,0.0004225]
[1744477148129,0.011818,84614.0,84610.0,0.2367985]
[1744477150221,0.011818,84615.0,84610.0,0.2367995]
[1744477151817,0.011818,84615.0,84611.0,0.236373]
[1744477154442,0.011818,84616.0,84613.0,0.236369]
[1744477154648,0.248178,84617.0,84613.0,0.236369]
[1744477155075,0.011818,84616.0,84613.0,0.236369]
[1744477158982,0.011817,84620.0,84613.0,0.011818]
[1744477159211,0.011817,84621.0,84617.0,0.236356]
[1744477159425,0.011817,84620.0,84617.0,0.236356]
[1744477160078,0.011817,84619.0,84615.0,0.236362]
[1744477160500,0.011817,84618.0,84615.0,0.236362]
[1744477160720,0.011817,84619.0,84615.0,0.236362]
[1744477162526,0.248167,84620.0,84616.0,0.23636]
[1744477163098,0.011817,84619.0,84616.0,0.23636]
[1744477164231,0.011817,84618.0,84615.0,0.236362]
[1744477164670,0.011817,84619.0,84615.0,0.236362]
[1744477167412,0.011817,84618.0,84615.0,0.236362]
[1744477169227,0.011817,84618.0,84614.0,0.0477]
[1744477169587,0.011817,84619.0,84614.0,0.0477]
[1744477170041,0.011817,84618.0,84614.0,0.0477]
[1744477170787,0.011817,84619.0,84615.0,0.236363]
[1744477171027,0.011817,84620.0,84615.0,0.011818]
[1744477171252,0.011817,84619.0,84616.0,0.236359]
[1744477171503,0.011817,84620.0,84616.0,0.236359]
[1744477171967,0.01192067,84624.0,84623.0,0.0471]
[1744477171968,0.00010467,84624.0,84623.0,0.0471]
[1744477179491,0.00010467,84624.0,84619.0,0.011817]
[1744477179492,0.236373,84613.0,84611.0,0.0462]
[1744477179736,0.236373,84613.0,84610.0,0.0004225]
[1744477179737,0.236375,84611.0,84610.0,0.0004225]
[1744477180188,0.246375,84611.0,84610.0,0.0004225]
[1744477182375,0.249375,84611.0,84610.0,0.0004225]
[1744477183548,0.250375,84611.0,84610.0,0.0004225]
[1744477200561,0.590375,84611.0,84610.0,0.0004225]
[1744477207626,0.014,84611.0,84610.0,0.0004225]
[1744477207821,0.014,84611.0,84610.0,0.2368005]
[1744477207822,0.004,84611.0,84610.0,0.2368005]
[1744477208200,0.004,84611.0,84610.0,0.0004225]
[1744477209442,0.001,84611.0,84610.0,0.0004225]
[1744477209652,0.236375,84612.0,84610.0,0.0004225]
[1744477212549,0.011818,84613.0,84610.0,0.0004225]
[1744477212692,0.248188,84613.0,84611.0,0.0497]
[1744477214224,0.249188,84613.0,84611.0,0.0497]
[1744477222358,0.236375,84611.0,84610.0,0.0004225]
[1744477222596,0.246375,84611.0,84610.0,0.0004225]
[1744477232826,0.011817,84619.0,84610.0,0.0122405]
[1744477233044,0.011818,84614.0,84611.0,0.0488]
[1744477233260,0.011817,84617.0,84611.0,0.0488]
[1744477233466,0.011818,84615.0,84611.0,0.0488]
[1744477233673,0.011818,84614.0,84611.0,0.0488]
[1744477234178,0.248187,84614.0,84611.0,0.0488]
[1744477234413,0.248185,84614.0,84611.0,0.0488]
[1744477234606,0.236373,84612.0,84611.0,0.0488]
[1744477234751,0.236372,84613.0,84611.0,0.0488]
[1744477236608,0.248186,84614.0,84611.0,0.0488]
[1744477238840,0.011818,84614.0,84611.0,0.285175]
[1744477239082,0.011818,84614.0,84611.0,0.0488]
[1744477239294,0.23637,84613.0,84611.0,0.0488]
[1744477243731,0.236375,84611.0,84610.0,0.0004225]
[1744477246171,0.011819,84608.0,84605.0,0.2802171]
[1744477246769,0.248193,84611.0,84605.0,0.2802171]
[1744477247169,0.011818,84610.0,84605.0,0.2802171]
[1744477247353,0.011819,84609.0,84605.0,0.2802171]
[1744477248052,0.248202,84609.0,84605.0,0.0438271]
[1744477248210,0.01182,84602.0,84599.0,0.281707]
[1744477248867,0.248219,84603.0,84599.0,0.281707]
[1744477249019,0.011819,84603.0,84599.0,0.281707]
[1744477249227,0.248212,84605.0,84600.0,0.283104]
[1744477249429,0.011819,84604.0,84600.0,0.283104]
[1744477253142,0.011819,84604.0,84601.0,0.236401]
[1744477253525,0.248212,84605.0,84601.0,0.236401]
[1744477253737,0.011819,84605.0,84601.0,0.236401]
[1744477254080,0.011819,84604.0,84600.0,0.283104]
[1744477254281,0.011819,84605.0,84600.0,0.283104]
[1744477254643,0.248212,84605.0,84600.0,0.283104]
[1744477254862,0.011819,84604.0,84600.0,0.283104]
[1744477255438,0.011819,84603.0,84600.0,0.283104]
[1744477255672,0.011819,84605.0,84601.0,0.236401]
[1744477256093,0.011819,84604.0,84600.0,0.283104]
[1744477256330,0.011819,84604.0,84601.0,0.236402]
[1744477256535,0.011819,84605.0,84601.0,0.236402]
[1744477257012,0.236417,84596.0,84593.0,0.0462]
[1744477257245,0.248234,84598.0,84593.0,0.0462]
[1744477258221,0.01182,84599.0,84596.0,0.236417]
[1744477259187,0.011818,84614.0,84607.0,0.011819]
[1744477259445,0.011819,84607.0,84604.0,0.0462]
[1744477260680,0.248207,84607.0,84604.0,0.0462]
[1744477260921,0.011818,84610.0,84604.0,0.0462]
[1744477261162,0.011819,84607.0,84604.0,0.0462]
[1744477261409,0.248207,84607.0,84604.0,0.0462]
[1744477262074,0.011819,84607.0,84604.0,0.0462]
[1744477263208,0.248208,84607.0,84604.0,0.0462]
[1744477263655,0.236391,84606.0,84604.0,0.0462]
[1744477263852,0.011819,84605.0,84602.0,0.236398]
[1744477264069,0.011819,84604.0,84599.0,0.296628]
[1744477264443,0.011819,84604.0,84601.0,0.236403]
[1744477264639,0.011819,84603.0,84599.0,0.296628]
[1744477265012,0.01182,84602.0,84599.0,0.284808]
[1744477266570,0.01182,84602.0,84593.0,0.0457]
[1744477266571,0.01182,84598.0,84593.0,0.0457]
[1744477266784,0.236417,84596.0,84593.0,0.0457]
[1744477267424,0.01182,84598.0,84593.0,0.057521]
[1744477267635,0.248234,84598.0,84593.0,0.0457]
[1744477267835,0.236417,84597.0,84593.0,0.0457]
[1744477268848,0.01182,84598.0,84593.0,0.057521]
[1744477269057,0.01182,84598.0,84593.0,0.293945]
[1744477269279,0.01182,84601.0,84597.0,0.236413]
[1744477269503,0.00894239,84620.0,84614.0,0.011818]
[1744477269723,0.00894239,84620.0,84598.0,0.0453]
[1744477269724,0.011818,84615.0,84612.0,0.0453]
[1744477269938,0.011817,84618.0,84612.0,0.0453]
[1744477270162,0.011818,84615.0,84612.0,0.0453]
[1744477270387,0.011818,84610.0,84607.0,0.281685]